[Event "12th Arad Open 2019"]
[Site "Arad"]
[Date "2019.07.30"]
[Round "8.22"]
[White "Marjanovic, Annamaria"]
[Black "Dobrin, Ionut-Alexandru"]
[Result "1-0"]
[ECO "A14"]
[WhiteElo "2343"]
[BlackElo "2142"]
[Annotator "NA RC"]
[PlyCount "76"]
[EventDate "2019.07.24"]
[EventType "swiss"]
[EventCountry "ROU"]
[SourceTitle "playchess.com"]
[Source "ChessBase"]
[SourceQuality "1"]
[TimeControl "40/5400+30:900+30"]

1. c4 {[%emt 0:00:00]} e6 {[%emt 0:00:00]} 2. g3 {[%emt 0:00:00]} Nf6 {[%emt 0:00:23]} 3. Bg2 {[%emt 0:00:00]} d5 {[%emt 0:00:36]} 4. Nf3 {[%emt 0:00:00]} Be7 {[%emt 0:00:17]} 5. O-O {[%emt 0:00:03]} O-O {[%emt 0:00:45]} 6. b3 {[%emt 0:00:09]} b6 {[%emt 0:00:08]} 7. Bb2 {[%emt 0:00:30]} Bb7 {[%emt 0:00:11]} 8. cxd5 {[%emt 0:01:12]} exd5 {[%emt 0:03:26]} 9. d4 {[%emt 0:00:34]} c5 {[%emt 0:00:52]} 10. Nc3 {[%emt 0:05:32]} Na6 {[%emt 0:02:55]} 11. Rc1 {[%emt 0:03:14]} Nc7 {[%emt 0:02:13]} 12. dxc5 {[%emt 0:04:15]} Bxc5 {[%emt 0:05:35]} 13. Na4 {[%emt 0:04:04]} Be7 {[%emt 0:02:54]} 14. Nd4 {[%emt 0:00:36]} Ne6 {[%emt 0:01:47]} 15. Nf5 {[%emt 0:09:16]} Ne4 {[%emt 0:04:18]} 16. Nxe7+ {[%emt 0:14:12]} Qxe7 {[%emt 0:00:08]} 17. Nc3 {[%emt 0:00:52]} Rfd8 {[%emt 0:08:40]} 18. Nb5 {[%emt 0:02:52]} Ba6 {[%emt 0:07:18]} 19. Nd4 {[%emt 0:03:42]} Nxd4 {[%emt 0:07:22]} 20. Qxd4 {[%emt 0:00:58]} Nf6 {[%emt 0:04:01]} 21. Rfe1 {[%emt 0:00:57]} Bb7 {[%emt 0:04:21]} 22. e3 {[%emt 0:01:35]} Ne8 {[%emt 0:02:51]} 23. Re2 {[%emt 0:05:24]} f6 {[%emt 0:01:46]} 24. Rec2 {[%emt 0:01:30]} Rd7 {[%emt 0:01:53]} 25. Qg4 {[%emt 0:03:21]} Kh8 {[%emt 0:02:31]} 26. Bh3 {[%emt 0:02:31]} Rdd8 {[%emt 0:02:45]} 27. Qh4 {[%emt 0:02:29]} Qe4 {[%emt 0:01:26]} 28. Qxe4 {[%emt 0:11:18]} dxe4 {[%emt 0:00:01]} 29. Bd4 {[%emt 0:00:38]} Kg8 {[%emt 0:02:04]} 30. Be6+ {[%emt 0:00:49]} Kf8 {[%emt 0:01:10]} 31. Bb2 {[%emt 0:01:48]} Ke7 {[%emt 0:00:28]} 32. Bf5 {[%emt 0:03:07]} Bd5 {[%emt 0:06:49]} 33. Bxh7 {[%emt 0:01:27]} Nd6 {[%emt 0:01:45]} 34. Rc7+ {[%emt 0:02:37]} Rd7 {[%emt 0:00:15]} 35. Ba3 {[%emt 0:00:26]} Rh8 {[%emt 0:00:41]} 36. Bf5 {[%emt 0:00:32]} Be6 {[%emt 0:01:19]} 37. Bxd6+ {[%emt 0:00:18]} Kxd6 {[%emt 0:00:13]} 38. R7c6+ {[%emt 0:00:42]} Kd5 1-0

[Event "12th Arad Open 2019"]
[Site "Arad"]
[Date "2019.07.30"]
[Round "8.23"]
[White "Sarmir, Milos"]
[Black "Balla, Tamas-Kristof"]
[Result "0-1"]
[ECO "A04"]
[WhiteElo "2098"]
[BlackElo "2336"]
[Annotator "NA"]
[PlyCount "124"]
[EventDate "2019.07.24"]
[EventType "swiss"]
[EventCountry "ROU"]
[SourceTitle "playchess.com"]
[Source "ChessBase"]
[SourceQuality "1"]
[TimeControl "40/5400+30:900+30"]

1. Nf3 {[%emt 0:00:00]} c5 {[%emt 0:00:58]} 2. c4 {[%emt 0:00:10]} Nc6 {[%emt 0:00:22]} 3. Nc3 {[%emt 0:00:20]} e6 {[%emt 0:00:05]} 4. e3 {[%emt 0:00:11]} Nf6 {[%emt 0:01:40]} 5. Be2 {[%emt 0:00:19]} d5 {[%emt 0:01:47]} 6. d4 {[%emt 0:01:16]} cxd4 {[%emt 0:00:50]} 7. exd4 {[%emt 0:01:39]} Be7 {[%emt 0:01:48]} 8. O-O {[%emt 0:00:20]} O-O {[%emt 0:00:35]} 9. b3 {[%emt 0:06:37]} b6 {[%emt 0:02:54]} 10. Bb2 {[%emt 0:03:28]} Ba6 {[%emt 0:02:24]} 11. Ne5 {[%emt 0:04:48]} Rc8 {[%emt 0:01:16]} 12. Re1 {[%emt 0:01:49]} dxc4 {[%emt 0:09:49]} 13. Nxc6 {[%emt 0:02:07]} Rxc6 {[%emt 0:00:29]} 14. bxc4 {[%emt 0:00:06]} Bxc4 {[%emt 0:03:09]} 15. Qa4 {[%emt 0:03:08]} Qc7 {[%emt 0:01:09]} 16. Nb5 {[%emt 0:01:30]} Bxb5 {[%emt 0:01:33]} 17. Bxb5 {[%emt 0:00:06]} Rc2 {[%emt 0:00:10]} 18. Rac1 {[%emt 0:03:58]} Rxc1 {[%emt 0:03:03]} 19. Rxc1 {[%emt 0:00:16]} Qb8 {[%emt 0:01:21]} 20. Ba6 {[%emt 0:03:38]} Qf4 {[%emt 0:05:47]} 21. Qc2 {[%emt 0:02:50]} Nd5 {[%emt 0:02:12]} 22. g3 {[%emt 0:02:18]} Qd6 {[%emt 0:01:29]} 23. a3 {[%emt 0:00:43]} Bg5 {[%emt 0:00:24]} 24. Qc6 {[%emt 0:01:35]} Qxc6 {[%emt 0:04:31]} 25. Rxc6 {[%emt 0:00:03]} Rd8 {[%emt 0:00:07]} 26. Bc4 {[%emt 0:01:47]} g6 {[%emt 0:01:36]} 27. a4 {[%emt 0:07:20]} Bf6 {[%emt 0:03:01]} 28. Kf1 {[%emt 0:05:59]} Kf8 {[%emt 0:16:25]} 29. Ke2 {[%emt 0:06:46]} Bxd4 {[%emt 0:04:45]} 30. Bxd4 {[%emt 0:03:52]} Ne7 {[%emt 0:00:37]} 31. Bc5 {[%emt 0:10:03]} bxc5 {[%emt 0:00:24]} 32. Rxc5 {[%emt 0:00:01]} Rc8 {[%emt 0:00:14]} 33. Rxc8+ {[%emt 0:00:27]} Nxc8 {[%emt 0:00:04]} 34. Ba6 {[%emt 0:00:23]} Nb6 {[%emt 0:00:15]} 35. a5 {[%emt 0:00:13]} Nd5 {[%emt 0:00:08]} 36. Kf3 {[%emt 0:02:14]} Ke7 {[%emt 0:00:23]} 37. h4 {[%emt 0:01:57]} Kd6 {[%emt 0:00:23]} 38. Bb5 {[%emt 0:00:50]} Ke5 {[%emt 0:01:35]} 39. Kg4 {[%emt 0:02:31]} h6 {[%emt 0:01:32]} 40. Kf3 {[%emt 0:00:45]} Nc7 {[%emt 0:00:00]} 41. Be2 {[%emt 0:01:43]} Kd4 {[%emt 0:01:06]} 42. g4 {[%emt 0:00:35]} g5 {[%emt 0:01:11]} 43. Kg3 {[%emt 0:00:55]} a6 {[%emt 0:09:49]} 44. h5 {[%emt 0:03:36]} Kc5 {[%emt 0:07:00]} 45. f4 {[%emt 0:00:18]} gxf4+ {[%emt 0:00:16]} 46. Kxf4 {[%emt 0:00:11]} f6 {[%emt 0:00:02]} 47. g5 {[%emt 0:00:50]} Nd5+ {[%emt 0:22:17]} 48. Ke4 {[%emt 0:04:18]} fxg5 {[%emt 0:00:08]} 49. Bxa6 {[%emt 0:00:13]} Kd6 {[%emt 0:03:07]} 50. Bf1 {[%emt 0:02:21]} Nf6+ {[%emt 0:00:22]} 51. Kd4 {[%emt 0:01:26]} Nxh5 {[%emt 0:01:00]} 52. a6 {[%emt 0:00:09]} Kc6 {[%emt 0:00:28]} 53. Ke5 {[%emt 0:00:16]} Nf4 {[%emt 0:00:07]} 54. Kf6 {[%emt 0:02:03]} Kb6 {[%emt 0:00:05]} 55. Kg7 {[%emt 0:00:45]} h5 {[%emt 0:00:56]} 56. Kf6 {[%emt 0:00:17]} g4 {[%emt 0:01:20]} 57. Ke5 {[%emt 0:01:59]} Nd5 {[%emt 0:00:30]} 58. Kxe6 {[%emt 0:00:32]} Ne3 {[%emt 0:00:16]} 59. Bd3 {[%emt 0:00:56]} g3 {[%emt 0:01:06]} 60. Be4 h4 61. Ke5 h3 62. Kf4 g2 0-1

[Event "12th Arad Open 2019"]
[Site "Arad"]
[Date "2019.07.30"]
[Round "8.24"]
[White "Voinescu, David-Ioan"]
[Black "Tomici, Stefan"]
[Result "1/2-1/2"]
[ECO "C11"]
[WhiteElo "2046"]
[BlackElo "2329"]
[Annotator "NA"]
[PlyCount "121"]
[EventDate "2019.07.24"]
[EventType "swiss"]
[EventCountry "ROU"]
[SourceTitle "playchess.com"]
[Source "ChessBase"]
[SourceQuality "1"]
[TimeControl "40/5400+30:900+30"]

1. e4 {[%emt 0:00:00]} e6 {[%emt 0:00:00]} 2. d4 {[%emt 0:00:00]} d5 {[%emt 0:00:00]} 3. Nc3 {[%emt 0:00:00]} Nf6 {[%emt 0:00:00]} 4. e5 {[%emt 0:00:00]} Nfd7 {[%emt 0:00:00]} 5. f4 {[%emt 0:00:00]} c5 {[%emt 0:00:13]} 6. Nf3 {[%emt 0:00:04]} Nc6 {[%emt 0:00:06]} 7. Be3 {[%emt 0:00:43]} Be7 {[%emt 0:00:16]} 8. Be2 {[%emt 0:02:16]} O-O {[%emt 0:05:22]} 9. Qd2 {[%emt 0:09:11]} f6 {[%emt 0:24:48]} 10. exf6 {[%emt 0:07:47]} Bxf6 {[%emt 0:15:57]} 11. O-O {[%emt 0:07:52]} cxd4 {[%emt 0:15:55]} 12. Nxd4 {[%emt 0:00:29]} Nxd4 {[%emt 0:03:13]} 13. Bxd4 {[%emt 0:00:08]} Bxd4+ {[%emt 0:00:05]} 14. Qxd4 {[%emt 0:00:09]} Qb6 {[%emt 0:00:04]} 15. Qxb6 {[%emt 0:01:58]} Nxb6 {[%emt 0:00:06]} 16. Rae1 {[%emt 0:11:09]} Bd7 {[%emt 0:04:12]} 17. Bg4 {[%emt 0:02:01]} Rac8 {[%emt 0:10:25]} 18. Rf2 {[%emt 0:12:27]} Rfe8 {[%emt 0:03:59]} 19. Rfe2 {[%emt 0:11:15]} Kf7 {[%emt 0:01:50]} 20. a4 {[%emt 0:07:22]} Rc5 {[%emt 0:05:11]} 21. Nb5 {[%emt 0:02:12]} Bxb5 {[%emt 0:00:38]} 22. axb5 {[%emt 0:00:02]} Rxb5 {[%emt 0:01:03]} 23. Bxe6+ {[%emt 0:10:13]} Kf8 {[%emt 0:00:58]} 24. b3 {[%emt 0:00:10]} Rc5 {[%emt 0:01:16]} 25. Re5 {[%emt 0:02:26]} g6 {[%emt 0:03:58]} 26. c4 {[%emt 0:00:14]} Rd8 {[%emt 0:01:44]} 27. Rd1 {[%emt 0:00:30]} a5 {[%emt 0:01:20]} 28. cxd5 {[%emt 0:02:08]} Rd6 {[%emt 0:00:33]} 29. f5 {[%emt 0:02:04]} Kg7 {[%emt 0:00:31]} 30. fxg6 {[%emt 0:01:39]} hxg6 {[%emt 0:00:06]} 31. h4 {[%emt 0:02:31]} Nd7 {[%emt 0:00:54]} 32. Re3 {[%emt 0:03:44]} Nf8 {[%emt 0:00:33]} 33. Rf1 {[%emt 0:00:46]} Rc7 {[%emt 0:00:17]} 34. Rfe1 {[%emt 0:00:15]} Re7 {[%emt 0:00:30]} 35. Kf2 {[%emt 0:00:45]} b5 {[%emt 0:00:26]} 36. g4 {[%emt 0:00:19]} Nxe6 {[%emt 0:00:40]} 37. dxe6 {[%emt 0:01:35]} a4 {[%emt 0:00:14]} 38. bxa4 {[%emt 0:00:02]} bxa4 {[%emt 0:00:03]} 39. Kg3 {[%emt 0:00:36]} Ra6 {[%emt 0:00:40]} 40. Ra1 {[%emt 0:00:00]} Rexe6 {[%emt 0:00:00]} 41. Rxe6 {[%emt 0:00:27]} Rxe6 {[%emt 0:01:18]} 42. Rxa4 {[%emt 0:00:09]} Re7 {[%emt 0:08:33]} 43. Rd4 {[%emt 0:02:30]} Rf7 {[%emt 0:01:15]} 44. g5 {[%emt 0:01:24]} Rf1 {[%emt 0:02:41]} 45. Rd7+ {[%emt 0:00:29]} Kg8 {[%emt 0:00:32]} 46. Rd4 {[%emt 0:00:26]} Kg7 {[%emt 0:00:45]} 47. Rf4 {[%emt 0:00:06]} Ra1 {[%emt 0:01:07]} 48. Kf3 {[%emt 0:00:25]} Ra3+ {[%emt 0:01:28]} 49. Ke4 {[%emt 0:00:09]} Ra4+ {[%emt 0:01:00]} 50. Ke5 {[%emt 0:00:06]} Ra5+ {[%emt 0:00:02]} 51. Kd6 {[%emt 0:00:05]} Ra6+ {[%emt 0:00:02]} 52. Kc5 {[%emt 0:00:19]} Ra5+ {[%emt 0:00:33]} 53. Kb6 {[%emt 0:00:20]} Ra1 {[%emt 0:00:35]} 54. Rd4 {[%emt 0:00:23]} Rc1 {[%emt 0:01:10]} 55. Rd7+ {[%emt 0:00:44]} Kf8 {[%emt 0:00:31]} 56. Rc7 {[%emt 0:00:08]} Rb1+ {[%emt 0:00:55]} 57. Kc6 {[%emt 0:00:07]} Rc1+ {[%emt 0:01:46]} 58. Kd6 {[%emt 0:00:08]} Rxc7 {[%emt 0:00:03]} 59. Kxc7 {[%emt 0:00:06]} Ke7 {[%emt 0:00:03]} 60. Kc8 {[%emt 0:04:03]} Ke8 {[%emt 0:00:04]} 61. Kc7 {[%emt 0:02:09]} 1/2-1/2

[Event "12th Arad Open 2019"]
[Site "Arad"]
[Date "2019.07.30"]
[Round "8.25"]
[White "Magold, Filip"]
[Black "Dicu, Razvan-Stefan"]
[Result "0-1"]
[ECO "C16"]
[WhiteElo "1865"]
[BlackElo "2286"]
[Annotator "NA"]
[PlyCount "78"]
[EventDate "2019.07.24"]
[EventType "swiss"]
[EventCountry "ROU"]
[SourceTitle "playchess.com"]
[Source "ChessBase"]
[SourceQuality "1"]
[TimeControl "40/5400+30:900+30"]

1. e4 {[%emt 0:00:00]} e6 {[%emt 0:00:00]} 2. d4 {[%emt 0:00:00]} d5 {[%emt 0:00:00]} 3. Nc3 {[%emt 0:00:00]} Bb4 {[%emt 0:00:00]} 4. e5 {[%emt 0:00:03]} Qd7 {[%emt 0:00:13]} 5. f4 {[%emt 0:01:14]} b6 {[%emt 0:01:22]} 6. a3 {[%emt 0:00:38]} Bxc3+ {[%emt 0:00:20]} 7. bxc3 {[%emt 0:00:05]} Ba6 {[%emt 0:00:20]} 8. Bxa6 {[%emt 0:05:33]} Nxa6 {[%emt 0:00:09]} 9. Qe2 {[%emt 0:00:04]} Nb8 {[%emt 0:00:16]} 10. Nf3 {[%emt 0:00:10]} Nc6 {[%emt 0:01:43]} 11. Be3 {[%emt 0:00:27]} Na5 {[%emt 0:00:24]} 12. O-O {[%emt 0:01:17]} Ne7 {[%emt 0:00:35]} 13. Bf2 {[%emt 0:03:23]} Qc6 {[%emt 0:10:37]} 14. Qd3 {[%emt 0:01:37]} Nc4 {[%emt 0:01:01]} 15. Rfb1 {[%emt 0:04:01]} h6 {[%emt 0:10:03]} 16. h3 {[%emt 0:04:39]} Kd7 {[%emt 0:08:38]} 17. Ne1 {[%emt 0:13:04]} f5 {[%emt 0:05:58]} 18. Nf3 {[%emt 0:05:40]} Rag8 {[%emt 0:07:30]} 19. Bh4 {[%emt 0:00:49]} Ng6 {[%emt 0:00:40]} 20. Bg3 {[%emt 0:00:06]} Nf8 {[%emt 0:00:19]} 21. h4 {[%emt 0:04:29]} Kc8 {[%emt 0:01:56]} 22. a4 {[%emt 0:02:48]} a5 {[%emt 0:00:11]} 23. Kf2 {[%emt 0:01:42]} Kb7 {[%emt 0:06:53]} 24. Rb5 {[%emt 0:07:42]} Nh7 {[%emt 0:05:07]} 25. h5 {[%emt 0:06:43]} g5 {[%emt 0:00:38]} 26. hxg6 {[%emt 0:00:18]} Rxg6 {[%emt 0:00:05]} 27. Bh4 {[%emt 0:00:27]} Rhg8 {[%emt 0:00:53]} 28. g3 {[%emt 0:00:08]} Qd7 {[%emt 0:04:09]} 29. Nd2 {[%emt 0:02:59]} Nxd2 {[%emt 0:00:07]} 30. Qxd2 {[%emt 0:00:01]} Ng5 {[%emt 0:01:16]} 31. Bxg5 {[%emt 0:03:27]} hxg5 {[%emt 0:00:09]} 32. Rg1 {[%emt 0:01:21]} gxf4 {[%emt 0:01:21]} 33. Qxf4 {[%emt 0:00:04]} Rg4 {[%emt 0:00:35]} 34. Qf3 {[%emt 0:00:43]} f4 {[%emt 0:01:03]} 35. c4 {[%emt 0:02:56]} Rxg3 {[%emt 0:00:22]} 36. Rxg3 {[%emt 0:00:04]} fxg3+ {[%emt 0:00:09]} 37. Kg2 {[%emt 0:00:28]} Qh7 {[%emt 0:00:10]} 38. Qxg3 {[%emt 0:05:05]} Qxc2+ {[%emt 0:00:12]} 39. Kh3 {[%emt 0:00:07]} Rxg3+ {[%emt 0:00:13]} 0-1

[Event "12th Arad Open 2019"]
[Site "Arad"]
[Date "2019.07.30"]
[Round "8.26"]
[White "Pop, Alexandru"]
[Black "Mihai, Cristian"]
[Result "1-0"]
[ECO "A58"]
[WhiteElo "2276"]
[BlackElo "1903"]
[Annotator "NA"]
[PlyCount "103"]
[EventDate "2019.07.24"]
[EventType "swiss"]
[EventCountry "ROU"]
[SourceTitle "playchess.com"]
[Source "ChessBase"]
[SourceQuality "1"]
[TimeControl "40/5400+30:900+30"]

1. d4 {[%emt 0:11:27]} Nf6 {[%emt 0:00:00]} 2. c4 {[%emt 0:00:04]} c5 {[%emt 0:00:00]} 3. d5 {[%emt 0:00:04]} b5 {[%emt 0:00:00]} 4. cxb5 {[%emt 0:00:03]} a6 {[%emt 0:00:00]} 5. bxa6 {[%emt 0:00:02]} g6 {[%emt 0:00:14]} 6. Nc3 {[%emt 0:00:07]} Bg7 {[%emt 0:00:22]} 7. a7 {[%emt 0:01:51]} Rxa7 {[%emt 0:00:19]} 8. e4 {[%emt 0:00:05]} d6 {[%emt 0:05:15]} 9. Nf3 {[%emt 0:00:13]} O-O {[%emt 0:01:56]} 10. Be2 {[%emt 0:00:10]} Ba6 {[%emt 0:01:05]} 11. O-O {[%emt 0:00:28]} Nbd7 {[%emt 0:05:26]} 12. Bxa6 {[%emt 0:11:18]} Rxa6 {[%emt 0:00:06]} 13. a4 {[%emt 0:01:24]} Qb6 {[%emt 0:01:29]} 14. Qc2 {[%emt 0:01:34]} Qb4 {[%emt 0:03:06]} 15. Bd2 {[%emt 0:09:19]} Rb8 {[%emt 0:00:37]} 16. Rfb1 {[%emt 0:01:38]} Qb3 {[%emt 0:11:06]} 17. Qxb3 {[%emt 0:00:11]} Rxb3 {[%emt 0:00:06]} 18. Be1 {[%emt 0:05:10]} Ng4 {[%emt 0:04:59]} 19. Nd1 {[%emt 0:27:14]} Nge5 {[%emt 0:04:59]} 20. Nxe5 {[%emt 0:08:26]} Nxe5 {[%emt 0:01:40]} 21. Bc3 {[%emt 0:01:37]} Nc4 {[%emt 0:02:02]} 22. Ra2 {[%emt 0:00:59]} Rab6 {[%emt 0:03:26]} 23. Rc1 {[%emt 0:02:56]} Bxc3 {[%emt 0:01:52]} 24. Rxc3 {[%emt 0:00:11]} Rxc3 {[%emt 0:00:04]} 25. Nxc3 {[%emt 0:00:05]} Rxb2 {[%emt 0:00:37]} 26. Rxb2 {[%emt 0:00:09]} Nxb2 {[%emt 0:00:01]} 27. a5 {[%emt 0:00:10]} Nc4 {[%emt 0:00:06]} 28. a6 {[%emt 0:00:05]} Nb6 {[%emt 0:00:13]} 29. Nb5 {[%emt 0:00:26]} Na8 {[%emt 0:00:06]} 30. f4 {[%emt 0:06:34]} f6 {[%emt 0:01:17]} 31. Kf2 {[%emt 0:00:15]} Kf7 {[%emt 0:00:56]} 32. e5 {[%emt 0:06:50]} fxe5 {[%emt 0:00:34]} 33. fxe5 {[%emt 0:00:03]} dxe5 {[%emt 0:00:06]} 34. Ke3 {[%emt 0:00:06]} Ke8 {[%emt 0:01:35]} 35. Ke4 {[%emt 0:00:15]} Kd7 {[%emt 0:00:32]} 36. Kxe5 {[%emt 0:00:26]} Nb6 {[%emt 0:01:37]} 37. a7 {[%emt 0:03:48]} h6 {[%emt 0:02:53]} 38. g3 {[%emt 0:00:17]} Nc4+ {[%emt 0:02:37]} 39. Ke4 {[%emt 0:00:17]} Nb6 {[%emt 0:00:04]} 40. g4 {[%emt 0:00:00]} h5 {[%emt 0:05:28]} 41. g5 {[%emt 0:00:48]} h4 {[%emt 0:19:58]} 42. h3 {[%emt 0:00:16]} Na8 {[%emt 0:01:36]} 43. Ke5 {[%emt 0:02:01]} Nb6 {[%emt 0:00:32]} 44. d6 {[%emt 0:04:19]} c4 {[%emt 0:00:24]} 45. dxe7 {[%emt 0:00:58]} Kxe7 {[%emt 0:00:12]} 46. Nc7 {[%emt 0:03:32]} c3 {[%emt 0:00:06]} 47. Nd5+ {[%emt 0:00:09]} Kf7 {[%emt 0:01:04]} 48. Nxb6 {[%emt 0:00:17]} c2 {[%emt 0:00:10]} 49. a8=Q {[%emt 0:00:05]} c1=Q {[%emt 0:00:17]} 50. Qb7+ {[%emt 0:00:06]} Kg8 {[%emt 0:00:16]} 51. Qc8+ {[%emt 0:00:05]} Qxc8 {[%emt 0:00:06]} 52. Nxc8 {[%emt 0:00:03]} 1-0

[Event "12th Arad Open 2019"]
[Site "Arad"]
[Date "2019.07.30"]
[Round "8.27"]
[White "Kutnik, Alexandru-Francisc"]
[Black "Vasiesiu, Victor"]
[Result "0-1"]
[ECO "B06"]
[WhiteElo "2043"]
[BlackElo "2269"]
[Annotator "NA"]
[PlyCount "140"]
[EventDate "2019.07.24"]
[EventType "swiss"]
[EventCountry "ROU"]
[SourceTitle "playchess.com"]
[Source "ChessBase"]
[SourceQuality "1"]
[TimeControl "40/5400+30:900+30"]

1. e4 {[%emt 0:00:00]} g6 {[%emt 0:05:09]} 2. d4 {[%emt 0:00:00]} Bg7 {[%emt 0:00:04]} 3. Nc3 {[%emt 0:00:00]} c6 {[%emt 0:00:04]} 4. Nf3 {[%emt 0:00:12]} d6 {[%emt 0:00:08]} 5. a4 {[%emt 0:00:10]} Nf6 {[%emt 0:00:14]} 6. h3 {[%emt 0:01:31]} O-O {[%emt 0:00:48]} 7. Be2 {[%emt 0:00:23]} Qc7 {[%emt 0:00:07]} 8. Be3 {[%emt 0:00:31]} e5 {[%emt 0:01:28]} 9. Qd2 {[%emt 0:00:05]} Re8 {[%emt 0:00:53]} 10. dxe5 {[%emt 0:00:03]} dxe5 {[%emt 0:00:09]} 11. a5 {[%emt 0:00:30]} Nbd7 {[%emt 0:02:55]} 12. O-O {[%emt 0:00:06]} Nf8 {[%emt 0:09:55]} 13. Bc4 {[%emt 0:00:21]} Be6 {[%emt 0:00:44]} 14. Qe2 {[%emt 0:01:37]} b5 {[%emt 0:02:49]} 15. axb6 {[%emt 0:01:21]} axb6 {[%emt 0:00:13]} 16. Ng5 {[%emt 0:10:20]} Bxc4 {[%emt 0:05:38]} 17. Qxc4 {[%emt 0:00:03]} h6 {[%emt 0:00:35]} 18. Rxa8 {[%emt 0:01:52]} Rxa8 {[%emt 0:00:57]} 19. Nf3 {[%emt 0:01:27]} Ne6 {[%emt 0:00:02]} 20. Nd2 {[%emt 0:00:46]} b5 {[%emt 0:07:08]} 21. Qe2 {[%emt 0:00:01]} Nd4 {[%emt 0:00:33]} 22. Bxd4 {[%emt 0:02:13]} exd4 {[%emt 0:02:24]} 23. Nd1 {[%emt 0:00:01]} Re8 {[%emt 0:03:59]} 24. Qd3 {[%emt 0:00:09]} Nd7 {[%emt 0:00:37]} 25. f4 {[%emt 0:00:56]} Nc5 {[%emt 0:03:19]} 26. Qf3 {[%emt 0:00:30]} Qa5 {[%emt 0:00:58]} 27. Rf2 {[%emt 0:02:03]} Nxe4 {[%emt 0:01:31]} 28. Nxe4 {[%emt 0:00:10]} Qe1+ {[%emt 0:00:06]} 29. Rf1 {[%emt 0:01:30]} Qxe4 {[%emt 0:00:06]} 30. Qd3 {[%emt 0:02:03]} f5 {[%emt 0:02:35]} 31. g3 {[%emt 0:03:31]} Qxd3 {[%emt 0:01:19]} 32. cxd3 {[%emt 0:00:01]} c5 {[%emt 0:00:09]} 33. b3 {[%emt 0:02:47]} Ra8 {[%emt 0:00:12]} 34. Nf2 {[%emt 0:00:07]} Ra2 {[%emt 0:00:30]} 35. Rb1 {[%emt 0:00:03]} Kf7 {[%emt 0:00:18]} 36. Kg2 {[%emt 0:00:06]} Ke6 {[%emt 0:00:08]} 37. Kf3 {[%emt 0:00:05]} Kd5 {[%emt 0:00:09]} 38. g4 {[%emt 0:00:27]} Bf6 {[%emt 0:00:10]} 39. Kg3 {[%emt 0:20:00]} Bd8 {[%emt 0:06:09]} 40. gxf5 {[%emt 0:05:24]} gxf5 {[%emt 0:00:00]} 41. Re1 {[%emt 0:15:04]} Bc7 {[%emt 0:00:22]} 42. Kf3 {[%emt 0:25:19]} Bxf4 {[%emt 0:00:42]} 43. Re8 {[%emt 0:00:25]} Bg5 {[%emt 0:01:43]} 44. Rf8 {[%emt 0:00:26]} Ke6 {[%emt 0:00:50]} 45. Re8+ {[%emt 0:00:22]} Kd6 {[%emt 0:00:19]} 46. Rf8 {[%emt 0:00:36]} Bh4 {[%emt 0:00:14]} 47. Nh1 {[%emt 0:02:38]} Rh2 {[%emt 0:00:22]} 48. Rh8 {[%emt 0:00:04]} Bg5 {[%emt 0:01:44]} 49. Ng3 {[%emt 0:00:50]} Rd2 {[%emt 0:02:40]} 50. Nxf5+ {[%emt 0:00:35]} Ke5 {[%emt 0:00:10]} 51. Kg4 {[%emt 0:00:51]} Rxd3 {[%emt 0:00:23]} 52. h4 {[%emt 0:00:24]} Bd2 {[%emt 0:02:34]} 53. Re8+ {[%emt 0:01:22]} Kf6 {[%emt 0:00:30]} 54. Rf8+ {[%emt 0:00:33]} Ke6 {[%emt 0:00:29]} 55. Re8+ {[%emt 0:00:39]} Kd7 {[%emt 0:01:45]} 56. Re7+ {[%emt 0:00:46]} Kc6 {[%emt 0:00:07]} 57. Re6+ {[%emt 0:00:09]} Kd5 {[%emt 0:01:04]} 58. Re2 {[%emt 0:03:18]} Be3 {[%emt 0:00:45]} 59. Rb2 {[%emt 0:00:36]} Rd2 {[%emt 0:00:59]} 60. Rb1 {[%emt 0:00:11]} Rg2+ {[%emt 0:00:30]} 61. Kh3 {[%emt 0:00:33]} Rf2 {[%emt 0:00:23]} 62. Ne7+ {[%emt 0:02:02]} Ke4 {[%emt 0:00:04]} 63. Nc8 {[%emt 0:00:10]} Bf4 {[%emt 0:00:11]} 64. Kg4 {[%emt 0:01:24]} Rg2+ {[%emt 0:00:06]} 65. Kh5 {[%emt 0:00:11]} d3 {[%emt 0:00:04]} 66. Na7 {[%emt 0:00:27]} d2 {[%emt 0:00:40]} 67. Nxb5 {[%emt 0:00:02]} Kd3 {[%emt 0:00:09]} 68. Na3 {[%emt 0:01:03]} Re2 {[%emt 0:00:24]} 69. Nc4 {[%emt 0:05:23]} Re1 {[%emt 0:00:06]} 70. Nxd2 {[%emt 0:00:20]} Bxd2 {[%emt 0:00:14]} 0-1

[Event "12th Arad Open 2019"]
[Site "Arad"]
[Date "2019.07.30"]
[Round "8.28"]
[White "Fluerariu, Radu-Cristian"]
[Black "Starcevic, Ante Leon"]
[Result "0-1"]
[ECO "B22"]
[WhiteElo "2021"]
[BlackElo "2217"]
[Annotator "NA"]
[PlyCount "78"]
[EventDate "2019.07.24"]
[EventType "swiss"]
[EventCountry "ROU"]
[SourceTitle "playchess.com"]
[Source "ChessBase"]
[SourceQuality "1"]
[TimeControl "40/5400+30:900+30"]

1. e4 {[%emt 0:05:25]} c5 {[%emt 0:00:46]} 2. c3 {[%emt 0:01:50]} d5 {[%emt 0:00:17]} 3. exd5 {[%emt 0:00:09]} Qxd5 {[%emt 0:00:08]} 4. Nf3 {[%emt 0:01:47]} g6 {[%emt 0:00:51]} 5. d4 {[%emt 0:04:23]} Bg7 {[%emt 0:00:42]} 6. Na3 {[%emt 0:00:53]} cxd4 {[%emt 0:00:19]} 7. Bc4 {[%emt 0:01:21]} Qe4+ {[%emt 0:00:42]} 8. Be3 {[%emt 0:02:09]} Nh6 {[%emt 0:00:08]} 9. cxd4 {[%emt 0:20:06]} O-O {[%emt 0:00:40]} 10. O-O {[%emt 0:03:11]} Nf5 {[%emt 0:01:05]} 11. Re1 {[%emt 0:12:00]} Nxe3 {[%emt 0:01:48]} 12. Rxe3 {[%emt 0:03:25]} Qf4 {[%emt 0:06:59]} 13. g3 {[%emt 0:07:57]} Qg4 {[%emt 0:12:34]} 14. Qb3 {[%emt 0:08:48]} Nc6 {[%emt 0:06:32]} 15. d5 {[%emt 0:04:09]} Na5 {[%emt 0:04:45]} 16. Qb5 {[%emt 0:04:21]} Nxc4 {[%emt 0:04:43]} 17. Nxc4 {[%emt 0:00:58]} Bf6 {[%emt 0:10:20]} 18. Rae1 {[%emt 0:03:00]} Qd7 {[%emt 0:01:31]} 19. Qxd7 {[%emt 0:09:29]} Bxd7 {[%emt 0:00:04]} 20. Nfe5 {[%emt 0:01:10]} Rfd8 {[%emt 0:18:13]} 21. d6 {[%emt 0:02:23]} Be6 {[%emt 0:03:51]} 22. dxe7 {[%emt 0:01:21]} Bxe7 {[%emt 0:00:04]} 23. b3 {[%emt 0:00:31]} Bb4 {[%emt 0:01:39]} 24. Rf1 {[%emt 0:00:41]} Rac8 {[%emt 0:05:36]} 25. a3 {[%emt 0:00:30]} Bc5 {[%emt 0:01:39]} 26. Rd3 {[%emt 0:00:26]} Rxd3 {[%emt 0:01:51]} 27. Nxd3 {[%emt 0:00:02]} Bd4 {[%emt 0:00:01]} 28. Rc1 {[%emt 0:01:01]} b5 {[%emt 0:05:25]} 29. Nd6 {[%emt 0:00:21]} Rxc1+ {[%emt 0:00:18]} 30. Nxc1 {[%emt 0:00:01]} a6 {[%emt 0:00:39]} 31. a4 {[%emt 0:00:41]} Bb2 {[%emt 0:00:49]} 32. Nd3 {[%emt 0:00:34]} Ba3 {[%emt 0:00:13]} 33. Ne4 {[%emt 0:00:54]} Bxb3 {[%emt 0:00:45]} 34. a5 {[%emt 0:00:29]} Bc2 {[%emt 0:01:24]} 35. Ndc5 {[%emt 0:00:28]} Bxe4 {[%emt 0:01:49]} 36. Nxe4 {[%emt 0:00:02]} Bb4 {[%emt 0:01:21]} 37. Nf6+ {[%emt 0:00:03]} Kf8 {[%emt 0:00:15]} 38. Nd7+ {[%emt 0:00:05]} Ke7 {[%emt 0:00:21]} 39. Nb8 {[%emt 0:00:31]} Bd6 {[%emt 0:01:22]} 0-1